Cogmind - Beta 16.1 @@@ ROGUE MODE // 2026.02.18 @ 01:31:21 Player: Lintence Result: Self-destructed Performance ------------- Evolutions (2) 1000 Regions Visited (3) 600 Robots Destroyed (34) 170 Value Destroyed (930) 930 Prototype IDs (2) 40 Alien Tech Used (0) 0 Bonus (0) 0 TOTAL SCORE: 2740 Bonus ------- None Cogmind --------- Core Integrity 499/550 Matter 229/300 Energy 112/280 System Corruption 0% Temperature Warning (320) Movement Treading (170) Location -8/Materials Parts ------- > --- POWER (1) -------- Heavy Ion Engine > --- PROPULSION (4) --- Armored Treads Armored Treads Armored Treads Armored Treads > --- UTILITY (3) ------ Heat Sink Medium Storage Unit Improved Targeting Computer > --- WEAPON (3) ------- Shock Rifle > --- INVENTORY (10) --- Heavy Ion Engine Advanced Treads Advanced Treads Improved Targeting Computer Hacking Suite Heavy Assault Rifle Mini Grenade Launcher Peak State ------------ > --- POWER ------------ Heavy Ion Engine > --- PROPULSION ------- Armored Treads Armored Treads Armored Treads Armored Treads > --- UTILITY ---------- Heat Sink Medium Storage Unit Improved Targeting Computer > --- WEAPON ----------- Shock Rifle Shock Rifle Shock Rifle > --- INVENTORY -------- Heavy Ion Engine Advanced Treads Advanced Treads Improved Targeting Computer Hacking Suite Shock Rifle Heavy Assault Rifle Mini Grenade Launcher [Rating: 30] Favorites ----------- Power Ion Engine Engine Ion Engine Propulsion Improved Hover Unit Treads Armored Treads Leg Aluminum Leg Hover Unit Improved Hover Unit Utility Structural Scanner Device Structural Scanner Storage Medium Storage Unit Processor Improved Targeting Computer Weapon Assault Rifle Energy Gun Shock Rifle Energy Cannon Advanced Beam Cannon Ballistic Gun Assault Rifle Ballistic Cannon Light Cannon Build | -11 -10 -9 -8 ------- Run | Yrd Mat Mat Mat Slots Evolved 4 | . . 2 2 Power . | . . . . Propulsion 2 | . . 2 . Utility 1 | . . . 1 Weapon 1 | . . . 1 Parts Attached 40 | 7 12 18 3 Power 4 | 1 2 1 . Engine 4 | 1 2 1 . Core . | . . . . Reactor . | . . . . Propulsion 17 | 2 4 11 . Treads 4 | . . 4 . Leg 8 | 2 4 2 . Wheel . | . . . . Hover 5 | . . 5 . Flight . | . . . . Utility 7 | 1 4 1 1 Device 3 | . 2 1 . Storage 3 | 1 2 . . Processor 1 | . . . 1 Hackware . | . . . . Protection . | . . . . Artifact . | . . . . Weapon 12 | 3 2 5 2 Energy Gun 5 | . . 3 2 Energy Cannon 1 | . . 1 . Ballistic Gun 4 | 3 . 1 . Ballistic Cannon 2 | . 2 . . Launcher . | . . . . Special Weapon . | . . . . Impact Weapon . | . . . . Slashing Weapon . | . . . . Piercing Weapon . | . . . . Special Melee Weapon . | . . . . Unidentified Prototypes 2 | . . 2 . Corrupted Parts 1 | . 1 . . System Corruption 1 | . 1 . . Parts Lost 6 | . 1 2 3 Power 1 | . 1 . . Propulsion 2 | . . 2 . Utility . | . . . . Weapon 3 | . . . 3 Highest Loss Streak 3 | . 1 2 3 To Critical Strikes . | . . . . Average Backups 7 | . 5 9 8 Power 1 | . . 1 1 Propulsion 1 | . 1 2 2 Utility 1 | . . 2 2 Weapon 2 | . 2 3 3 Tool/Special . | . . . . Unused Backups 11 | . 2 3 6 Power 2 | . . 1 1 Propulsion 2 | . . . 2 Utility 3 | . . 1 2 Weapon 4 | . 2 1 1 Tool/Special . | . . . . Average Slot Usage (%) 95 | . 99 92 99 Engine 11 | . 14 11 9 Treads 5 | . . 5 36 Leg 11 | . 28 2 . Hover 16 | . . 29 . Device 11 | . 13 11 9 Storage 11 | . 14 11 9 Energy Gun 5 | . . 6 26 Ballistic Gun 14 | . 17 15 . Ballistic Cannon 4 | . 10 . . Peak Build Rating 30 | 6 11 25 30 Average Rating 13 | 4 7 15 29 On Entrance 10 | . 6 10 25 Avg Prop Armor Cover (%) . | . . . . Naked Turns . | . . . . Heaviest Build 30 | 12 30 25 28 Greatest Support 80 | 20 26 80 80 Greatest Overweight (x) 8 | 3 1 8 . Average Overweight (x) . | . . . . Largest Inventory Capacity 15 | 8 15 10 10 Average Capacity 9 | 7 9 10 10 Most Carried 15 | 2 15 10 9 Average Carried 7 | . 6 9 7 Final Capacity 10 | 8 10 10 10 Final Carried 10 | 2 10 10 7 Class Distribution -------------------- 92% | Mutant 7% | Gunner Dominant Class ---------------- Mutant | -10/Materials Mutant | -9/Materials Gunner | -8/Materials Resources | -11 -10 -9 -8 ----------- Run | Yrd Mat Mat Mat Matter Collected 949 | 200 154 595 . Remotely . | . . . . Salvage Created 1149 | . 206 695 248 Parts 66 | . 12 43 11 Haulers Intercepted 2 | . . 1 1 Recyclers Shooed 1 | . . 1 . Parts Field Recycled . | . . . . Retrieved Matter . | . . . . Parts Self-Destructed . | . . . . Prevented . | . . . . Parts Restored . | . . . . Kills | -11 -10 -9 -8 ------- Run | Yrd Mat Mat Mat Combat Hostiles Destroyed 25 | . 5 14 6 Guns 17 | . 1 13 3 Cannons 5 | . 4 1 . AOE 2 | . . . 2 Classes Destroyed 9 | . 4 5 . Worker 2 | . 1 1 . Builder 1 | . . 1 . Hauler 2 | . . 1 1 Operator 2 | . 1 1 . Watcher 2 | . . 2 . Swarmer 6 | . 1 2 3 Grunt 14 | . 4 7 3 Duelist 1 | . . 1 . Sentry 4 | . . 4 . Best Kill Streak 6 | . 3 6 6 Combat Bots Only 5 | . 2 3 5 Max Kills in Single Turn 2 | . 1 2 2 Gunslinging . | . . . . Exploded 2 | . . . 2 Melee . | . . . . Uniques/NPCs Destroyed . | . . . . Combat | -11 -10 -9 -8 -------- Run | Yrd Mat Mat Mat Hostile Shots Fired 118 | . 20 67 31 Missed 40 | . 4 26 10 Hits 78 | . 16 41 21 Melee 2 | . . 1 1 Projectile 76 | . 16 40 20 Critical Strikes 2 | . 1 1 . Part Disruptions 1 | . 1 . . Damage Taken 1181 | . 260 558 363 Core 237 | . 67 119 51 Absorbed by Shields . | . . . . Core Remaining (%) 81 | 100 73 70 . Volleys Fired 80 | . 15 54 11 Largest 3 | . 2 2 3 Hottest 150 | . 60 100 150 Shots Fired 167 | . 26 109 32 Gun 140 | . 2 106 32 Cannon 27 | . 24 3 . Launcher . | . . . . Special . | . . . . Kinetic 124 | . 26 98 . Thermal 4 | . . 4 . Explosive . | . . . . Electromagnetic 39 | . . 7 32 Robot Hit Streak 17 | . 3 17 6 Robot Miss Streak 9 | . 4 9 4 Penetration Max . | . . . . Secondary Targets . | . . . . Shots Hit Robots 92 | . 11 65 16 Core Hits 54 | . 10 33 11 Critical Kills 1 | . . 1 . Critical Parts Destroyed . | . . . . Critical Strikes 3 | . . 1 2 Destroy 1 | . . 1 . Corrupt 2 | . . . 2 Melee Attacks . | . . . . Impact . | . . . . Slashing . | . . . . Piercing . | . . . . Sneak Attacks . | . . . . Combat Hostiles . | . . . . Follow-up Attacks . | . . . . Damage Inflicted 1697 | . 277 967 453 Guns 1211 | . 12 879 320 Cannons 213 | . 173 40 . Explosions 225 | . 92 . 133 Melee . | . . . . Ramming 48 | . . 48 . Kinetic 990 | . 185 805 . Thermal 187 | . . 54 133 Explosive . | . . . . Electromagnetic 472 | . 92 60 320 Impact . | . . . . Slashing . | . . . . Piercing . | . . . . Highest Corruption 2 | . 1 2 . Average Corruption 1 | . 1 2 . Corruption Purged . | . . . . Corruption Blocked . | . . . . Effects 13 | . 2 11 . Message Errors 4 | . 1 3 . Matter Fused 1 | . . 1 . Heat Flow Errors 1 | . . 1 . Energy Discharges 1 | . . 1 . Parts Rejected 1 | . . 1 . Data Loss (minor) 3 | . . 3 . Data Loss (major) 1 | . 1 . . Misfires 1 | . . 1 . Overload Shots . | . . . . Overflow Damage 25 | . 7 18 . Projectiles . | . . . . Explosions 7 | . 7 . . Melee 18 | . . 18 . Knockbacks . | . . . . Impact . | . . . . Kinetic . | . . . . Secondary . | . . . . Self-Inflicted Damage 80 | . 56 24 . Shots 2 | . 2 . . Rammed 2 | . . 2 . Targets Rammed 2 | . . 2 . Kicked . | . . . . Crushed . | . . . . Highest Temperature 311 | . 51 163 311 Average Temperature 60 | . 21 40 107 Received Heat Transfer 501 | . 117 213 171 Effects 1 | . . . 1 Damage (minor) 1 | . . . 1 Siege Activations . | . . . . Martial Activations . | . . . . Shielding Activations . | . . . . Robots Disrupted . | . . . . Combat Hostiles . | . . . . Robots Corrupted 1 | . . . 1 Combat Hostiles 1 | . . . 1 Parts Fried 5 | . . 3 2 Impact Corruptions 1 | . . 1 . Robots Melted . | . . . . Combat Hostiles . | . . . . Parts Melted . | . . . . Heat Transferred 161 | . . 111 50 Parts Sabotaged . | . . . . Parts Stolen . | . . . . Parts Stripped . | . . . . Power Chain Reactions 2 | . . . 2 Alert | -11 -10 -9 -8 ------- Run | Yrd Mat Mat Mat Maximum Alert Level 1 | . . 1 . Low Security (%) 89 | 100 100 78 100 Level 1 10 | . . 21 . Level 2 . | . . . . Level 3 . | . . . . Level 4 . | . . . . Level 5 . | . . . . High Security . | . . . . Max Security . | . . . . Peak Influence 227 | . 156 227 193 Initial 66 | . . 38 66 Average 98 | . 52 135 116 Influence Increases 815 | . 216 432 167 Destroy 0b10 Robot/C 500 | . 100 280 120 Destroy 0b10 Robot/NC 45 | . 10 30 5 Destroy Leader 118 | . 30 76 12 Disable Machine 60 | . 30 . 30 Destroy Structure 2 | . 1 1 . Partial Spotted 45 | . . 45 . Lose Combat Pursuer 45 | . 45 . . Influence Decreases 662 | . 124 366 172 Entered New Map 146 | . . 54 92 Time Decay 456 | . 114 292 50 Lost Part 60 | . 10 20 30 Squads Dispatched 3 | . 1 2 . Investigation 1 | . . 1 . Extermination . | . . . . Reinforcement 2 | . 1 1 . Assault . | . . . . Garrison . | . . . . Intercept . | . . . . Searches Triggered . | . . . . Construction Impeded . | . . . . Haulers Reinforced . | . . . . Active Scanning Responses . | . . . . Cargo Convoy Interrupts . | . . . . Stealth | -11 -10 -9 -8 --------- Run | Yrd Mat Mat Mat Distress Signals 4 | . 2 1 1 Communications Jammed . | . . . . Distress Signals . | . . . . Times Spotted 39 | . 11 19 9 Peak Tracking Total 7 | . 6 5 7 Tactical Retreats 2 | . 2 . . Traps | -11 -10 -9 -8 ------- Run | Yrd Mat Mat Mat Traps Triggered 1 | . . 1 . Indirectly . | . . . . Trap Hack Attempts . | . . . . Triggered . | . . . . Disarmed . | . . . . Reprogrammed . | . . . . Reused . | . . . . Traps Extracted . | . . . . Installed . | . . . . Triggered . | . . . . Machines | -11 -10 -9 -8 ---------- Run | Yrd Mat Mat Mat Machines Disabled 4 | . 2 . 2 Max in Single Turn 2 | . 2 . 1 Machines Repaired . | . . . . Machines Dismantled . | . . . . Machines Sabotaged . | . . . . Overloaded Fab Kills . | . . . . Hacking | -11 -10 -9 -8 --------- Run | Yrd Mat Mat Mat Machines Accessed 1 | . . 1 . Terminals 1 | . . 1 . Fabricators . | . . . . Repair Stations . | . . . . Recycling Units . | . . . . Scanalyzers . | . . . . Garrison Access . | . . . . Total Hacks 2 | . . 2 . Successful . | . . . . Failed 2 | . . 2 . Catastrophic . | . . . . Database Lockouts . | . . . . Manual . | . . . . Terminals 2 | . . 2 . Fabricators . | . . . . Repair Stations . | . . . . Recycling Units . | . . . . Scanalyzers . | . . . . Garrison Access . | . . . . Terminal Hacks . | . . . . Fabricator Hacks . | . . . . Repair Station Hacks . | . . . . Recycling Unit Hacks . | . . . . Scanalyzer . | . . . . Garrison Access Hacks . | . . . . Unauthorized Hacks . | . . . . Terminals . | . . . . Fabricators . | . . . . Repair Stations . | . . . . Recycling Units . | . . . . Scanalyzers . | . . . . Garrison Access . | . . . . Data Cores Recovered . | . . . . Used . | . . . . Hacking Detections 1 | . . 1 . Full Trace Events . | . . . . Feedback Events . | . . . . Feedback Blocked . | . . . . Robot Schematics Acquired . | . . . . Robots Built . | . . . . Authchips . | . . . . Time . | . . . . Total Robot Build Rating . | . . . . Part Schematics Acquired . | . . . . Parts Built . | . . . . Authchips . | . . . . Time . | . . . . Total Part Build Rating . | . . . . Part Studies Acquired . | . . . . Parts Repaired . | . . . . Time . | . . . . Parts Recycled . | . . . . Recycled Matter . | . . . . Retrieved Matter . | . . . . Retrieved Components . | . . . . Parts Scanalyzed . | . . . . Part Schematics Acquired . | . . . . Parts Damaged . | . . . . Bothacking | -11 -10 -9 -8 ------------ Run | Yrd Mat Mat Mat Used RIF Installer . | . . . . Robots Hacked . | . . . . Non-combat . | . . . . Combat . | . . . . Robot Hacks Applied . | . . . . Relay Couplers Released . | . . . . Fabnet Peak Effective % . | . . . . Robots Rewired . | . . . . Allies Hacked . | . . . . Hacks Repelled . | . . . . Allies | -11 -10 -9 -8 -------- Run | Yrd Mat Mat Mat Total Allies . | . . . . Largest Group . | . . . . Highest-Rated Group . | . . . . Highest-Rated Ally . | . . . . Total Orders . | . . . . Ally Attacks . | . . . . Total Damage . | . . . . Kills . | . . . . Allies Corrupted . | . . . . Allies Melted . | . . . . Intel | -11 -10 -9 -8 ------- Run | Yrd Mat Mat Mat Active Infowar (turns) 929 | . 434 495 . Structural 929 | . 434 495 . Robot Analysis Total . | . . . . Derelict Logs Recovered . | . . . . Drone Launches . | . . . . Drone Recoveries . | . . . . Exploration | -11 -10 -9 -8 ------------- Run | Yrd Mat Mat Mat Turns Passed 1258 | 58 444 651 105 Spaces Moved 712 | 37 254 382 39 Core 19 | 11 . 8 . Treads 76 | . . 37 39 Legs 302 | 26 254 22 . Wheels . | . . . . Hover 315 | . . 315 . Flight . | . . . . Fastest Speed 48 | 50 120 48 170 Average Speed 114 | 128 132 95 170 Slowest Speed 450 | 200 190 450 170 Overloaded Moves . | . . . . Propulsion Burnouts . | . . . . Robots Hopped . | . . . . Potential Cave-ins . | . . . . Cave-ins Triggered . | . . . . Exploration Rate (%) 26 | 3 56 36 9 Regions Visited 3 Branch Regions . Pre-discovered Areas . | . . . . Known Exits Taken . | . . . . Unknown Exits Taken 3 | 1 1 1 . Scrap Searched . | . . . . Spaces Dug . | . . . . Terrain Destroyed . | . . . . Melee . | . . . . Projectile . | . . . . AOE . | . . . . Terrain Rammed . | . . . . Walls Destroyed . | . . . . Machines Disabled . | . . . . Actions | -11 -10 -9 -8 --------- Run | Yrd Mat Mat Mat Total 993 | 44 334 562 53 Wait 97 | . 29 68 . Move 709 | 36 253 381 39 Hop . | . . . . Pick Up 28 | 1 12 15 . Fast Attach 17 | 6 2 9 . Attach 8 | . 2 3 3 Detach 2 | . . 2 . Swap 20 | 1 11 8 . Drop 30 | . 10 20 . Fire 80 | . 15 54 11 Melee . | . . . . Ram 2 | . . 2 . Kick . | . . . . Crush . | . . . . Escape Stasis . | . . . . Rewire . | . . . . Trap . | . . . . Miscellaneous . | . . . . Route ------- -11/Scrapyard -10/Materials (discovered 3 exits: *Mat x2 / [*Sub]) -9/Materials (discovered 3 exits: [*Mat x2] / [*Min]) -8/Materials History --------- Turn | Location | Event 17 | -11/Scrapyard | Discovered new exit (range 15) 59 | -11/Scrapyard | Entered Materials 144 | -10/Materials | Discovered new exit (range 5) 234 | -10/Materials | Discovered new exit (range 8) 310 | -10/Materials | Build established: Mutant 410 | -10/Materials | Discovered new exit (range 16) 503 | -10/Materials | Entered another Materials area 503 | -9/Materials | Evolved 2 slots: Propulsion x2 513 | -9/Materials | Discovered new exit (range 12) 704 | -9/Materials | Discovered new exit (range 15) 1120 | -9/Materials | Discovered new exit (range 11) 1154 | -9/Materials | Entered another Materials area 1154 | -8/Materials | Evolved 2 slots: Utility x1, Weapon x1 1259 | -8/Materials | Self-destructed Last Messages --------------- 01234_ R-06 Scavenger collects Corrupted Aluminum Leg. 01238_ R-06 Scavenger collects Corrupted Lgt. Nuclear Core. 01239_ Processing Tank disabled. 01242_ Chain reaction triggered in Lgt. Nuclear Core. 01243_ R-06 Scavenger collects Particle Gun. 01247_ G-47 Trooper system terminally corrupted. 01247_ Aluminum Leg fried. 01247_ Imp. Heat Sink fried. 01250_ Shock Rifle destroyed. 01251_ U-05 Engineer lays Concrete. 01256_ Shock Rifle destroyed. 01257_ U-05 Engineer lays Concrete. 01257_ Shock Rifle destroyed. 01258_ U-05 Engineer lays Concrete. 01259_ Overheating: Imp. Targeting Computer damaged (-4). 01259_ U-05 Engineer lays Concrete. Map ----- +----------------------------------------------------+ | ?????????????????????????????????????????????????? | | ?????????????????????????????????????????????????? | | ?????????????????????????????????????????????????? | | ?????????????????????????????????????????????????? | | ?????????????????????????????????????????????????? | | ?????????????????????????????????????????????????? | | ?????????????????????????????????????????????????? | | ?????????????????????????????????????????????????? | | ?????????????????????????????????????????????????? | | ?????????????????????????????????????????????????? | | ??????????????????????? u""?????????????????????? | | ????????????????????? "????????????????????? | | ????????????????????# " #????????????????? | | ????????????????????# % " w #????????????????? | | ????????????????????# u " #? ?????????????? | | ???????????????????? # ??????????????? | | ????????????????????# u # ???????????????? | | ????????????????????# g +????????????????? | | ????????????????????# gg#????????????????? | | ????????????????????# = #????????????????? | | ????????????????????# ][] ?????????????????? | | ????????????????????# ]%[ag ??????????????????? | | ????????????????????# =[* ##??????????????????? | | ????????????????????# T#??##########??????? | | ????????????????????# l #???# #??????? | | ????????????????????# @ #???# "" #??????? | | ?????????????##+##### ###?# "Y #??????? | | ????????????## % % #?# "" #??????? | | ?????????? #?# #??????? | | ?????????? #?# """" #??????? | | ??????????? """ /// #?# """" #??????? | | ??????????? "" /// #?# """" #??????? | | ????????????]]] % " // #?# #??????? | | ????????????]]! % #######+########### | | ????????????]]! % # | | ???????????? # | | ????????????? # | | ?????????????####+################################ | | ?????????????????????????????????????????????????? | | ?????????????????????????????????????????????????? | | ?????????????????????????????????????????????????? | | ?????????????????????????????????????????????????? | | ?????????????????????????????????????????????????? | | | | | | | | | | | | | | | +----------------------------------------------------+ Best States ------------- Heat Dissipation 41 Energy Generation 14 Energy Capacity 280 Matter Stores 300 Matter Capacity 300 Sight Range 16 Terrain Scan Density 10 Evasion (%) 55 Targeting Accuracy 6 Recoil Reduction 4 Item Schematics ----------------- None Robot Schematics ------------------ None Fabricated ------------ Nothing Repaired ---------- Nothing Studied --------- None Alien Tech Used ----------------- None Achievements -------------- None Challenges ------------ None Game ------ Seed OvertunedAntisysCorpse Manual? 0 Play Time 00:16:19 Cumulative 91.3 hours Start 2026.02.18 @ 01:16:12 End 2026.02.18 @ 01:31:21 Sessions 1 Manual Loads 0 Difficulty Rogue Special Mode None Game No. 184 Rogue 184 Adventurer 0 Explorer 0 Win Type - Total 1 Types 1/0/0/0/0/0/0/0/0/0 Lore% 26 Gallery% 36 Achievement% 26 Wizard Run 0 Options --------- Layout 1 ASCII 0 Keyboard 0 Movement Mouse Keybinds 0 Fullscreen 2 Font 20/X11 Map View 50x35 Zoom Use 0% Tactical HUD 1 Map Filters NONE Filters NONE Steam 1 RUN: 2ad5cf23-18ef-4c15-b49a-2e30305a0eec